{"text_format":"3","workbook":"xlsx","n_sheets":4,"sheets":["Inicio","Gastos","Ingresos","Resumen"],"not_rendered":{"charts":1,"defined_names":2},"read":"whole","date_system":"1900"}

{"sheet":"Inicio","index":0,"n_rows":8,"n_cols":2,"rows_kept":8}
[null,"INFORMACIÓN SOBRE ESTA PLANTILLA"]
[null,"Usa este libro de presupuesto del evento para realizar un seguimiento de los gastos e ingresos obtenidos por un evento."]
[null,"Rellena el nombre del evento y escribe la información en las tablas en las hojas de cálculo Gastos e Ingresos."]
[null,"El gastos Totales y el ingresos Totales se calculan automáticamente."]
[null,"El resumen de beneficios y pérdidas y el gráfico se actualizan automáticamente en la hoja de cálculo Resumen."]
[null,"Nota: "]
[null,"Se facilitan instrucciones adicionales en la columna A de cada hoja de cálculo. Este texto se ocultó a propósito. Para eliminar el texto, selecciona la columna A y, a continuación, ELIMINAR. Para mostrar el texto, selecciona la columna A y, a continuación, cambia el color de fuente."]
[null,"Para obtener más información sobre las tablas, presiona las teclas MAYÚS y F10 dentro de una tabla, selecciona la opción TABLA y después TEXTO ALTERNATIVO."]

{"sheet":"Gastos","index":1,"n_rows":33,"n_cols":8,"rows_kept":33,"merged":[[0,5,0,7],[1,1,1,7],[2,6,2,7]]}
["Escribe los gastos estimado y real de cada categoría en las respectivas tablas de esta hoja de cálculo. Los gastos totales se calculan automáticamente. Encontrarás instrucciones útiles sobre cómo usar esta hoja de cálculo en las celdas de esta columna. Presiona la flecha abajo para empezar."]
["Escribe el nombre del evento en la celda de la derecha para personalizar el título de esta y otras hojas de cálculo.","Presupuesto del evento para \nNombre del evento"]
["La etiqueta Gastos se encuentra en la celda G3.",{"$nulls":5}," Gastos"]
["La etiqueta Estimado está en la celda G4 y la etiqueta Real en H4.",{"$nulls":5},"Estimado","Real"]
["La etiqueta gastos Totales se encuentra en la celda de la derecha. Los gastos totales estimado se calculan automáticamente en la celda G5. El gastos Totales real y la barra de datos donde se muestra el gastos Totales real se actualizan automáticamente en la celda H5. La siguiente instrucción se encuentra en la celda A7.","Gastos totales",{"$nulls":4},{"$f":"SUM(C12,C20,C26,C33,G12,G20,G25)","v":{"v":1145,"d":"$1,145.00"}},{"$f":"SUM(D12,D20,D26,D33,H12,H20,H25)","v":{"v":395,"d":"$395.00"}}]
[]
["Escribe los gastos del sitio en la tabla que comienza en la celda de la derecha y los gastos de Refrescos en la tabla que comienza en la celda F7. La siguiente instrucción se encuentra en la celda A14.","Sitio","Estimado","Real",null,"Aperitivos","Estimado","Real"]
[null,"Gastos de sala y vestíbulo",{"v":500,"d":"$500.00"},{"v":250,"d":"$250.00"},null,"Comida"]
[null,"Personal del sitio",{"v":400,"d":"$400.00"},{"v":50,"d":"$50.00"},null,"Bebidas"]
[null,"Equipo",{"$nulls":3},"Mantelería"]
[null,"Mesas y sillas",{"$nulls":3},"Personal y compensaciones"]
[null,"Total",{"$f":"SUBTOTAL(109,GastosDelSitio[Estimado])","v":{"v":900,"d":"$900.00"}},{"$f":"SUBTOTAL(109,GastosDelSitio[Real])","v":{"v":300,"d":"$300.00"}},null,"Total",{"$f":"SUBTOTAL(109,GastosDeRefrescos[Estimado])","v":{"v":0,"d":"$0.00"}},{"$f":"SUBTOTAL(109,GastosDeRefrescos[Real])","v":{"v":0,"d":"$0.00"}}]
[]
["Escribe los gastos de Decoración en la tabla que comienza en la celda de la derecha y los gastos de programa en la tabla que comienza en la celda F14. La siguiente instrucción se encuentra en la celda A22.","Decoración","Estimado","Real",null,"Programa","Estimado","Real"]
[null,"Flores",{"v":200,"d":"$200.00"},{"v":50,"d":"$50.00"},null,"Actores"]
[null,"Velas",{"$nulls":3},"Oradores"]
[null,"Iluminación",{"$nulls":3},"Viajes"]
[null,"Globos",{"$nulls":3},"Hotel"]
[null,"Suministros de papel",{"$nulls":3},"Otros"]
[null,"Total",{"$f":"SUBTOTAL(109,GastosDeDecoración[Estimado])","v":{"v":200,"d":"$200.00"}},{"$f":"SUBTOTAL(109,GastosDeDecoración[Real])","v":{"v":50,"d":"$50.00"}},null,"Total",{"$f":"SUBTOTAL(109,GastosDePrograma[Estimado])","v":{"v":0,"d":"$0.00"}},{"$f":"SUBTOTAL(109,GastosDePrograma[Real])","v":{"v":0,"d":"$0.00"}}]
[]
["Escribe los gastos de publicidad en la tabla que comienza en la celda de la derecha y los gastos de premios en la tabla que comienza en la celda F22. La siguiente instrucción se encuentra en la celda A28.","Publicidad","Estimado","Real",null,"Premios","Estimado","Real"]
[null,"Trabajo de gráficos",{"v":45,"d":"$45.00"},{"v":45,"d":"$45.00"},null,"Cintas, placas o trofeos"]
[null,"Fotocopias e impresiones",{"$nulls":3},"Regalos"]
[null,"Gastos de envío",{"$nulls":3},"Total",{"$f":"SUBTOTAL(109,GastosDePremios[Estimado])","v":{"v":0,"d":"$0.00"}},{"$f":"SUBTOTAL(109,GastosDePremios[Real])","v":{"v":0,"d":"$0.00"}}]
[null,"Total",{"$f":"SUBTOTAL(109,GastosDePublicidad[Estimado])","v":{"v":45,"d":"$45.00"}},{"$f":"SUBTOTAL(109,GastosDePublicidad[Real])","v":{"v":45,"d":"$45.00"}}]
[]
["Escribe los gastos varios en la tabla que comienza en la celda de la derecha.","Varios","Estimado","Real"]
[null,"Teléfono"]
[null,"Transporte"]
[null,"Materiales de papelería"]
[null,"Servicios de fax"]
[null,"Total",{"$f":"SUBTOTAL(109,GastosVarios[Estimado])","v":{"v":0,"d":"$0.00"}},{"$f":"SUBTOTAL(109,GastosVarios[Real])","v":{"v":0,"d":"$0.00"}}]

{"sheet":"Ingresos","index":2,"n_rows":30,"n_cols":7,"rows_kept":30,"merged":[[1,1,1,6],[2,5,2,6]]}
["Escribe los ingresos estimado y real de cada categoría en las respectivas tablas de esta hoja de cálculo. Los ingresos totales se calculan automáticamente. Encontrarás instrucciones útiles sobre cómo usar esta hoja de cálculo en las celdas de esta columna. Presiona la flecha abajo para empezar."]
["El nombre del evento se actualiza automáticamente en celda de la derecha.",{"$f":"Gastos!B2","v":"Presupuesto del evento para \nNombre del evento"}]
["La etiqueta Ingresos se encuentra en la celda F3.",{"$nulls":4}," Ingresos"]
["La etiqueta Estimado está en la celda F4 y la etiqueta Real en G4.",{"$nulls":4},"Estimado","Real"]
["La etiqueta Ingresos totales se encuentra en la celda de la derecha. Los ingresos totales estimado se calculan automáticamente en la celda F5. El Total real y la barra de dato donde se muestra el total real se actualizan automáticamente en la celda G5.","Ingresos totales",{"$nulls":3},{"$f":"SUM(Admisiones[[#Totals],[Total estimado]],AnunciosEnElPrograma[[#Totals],[Total estimado]],ExpositoresYProveedores[[#Totals],[Total estimado]],VentaDeElemento[[#Totals],[Total estimado]])","v":{"v":1936,"d":"$1,936.00"}},{"$f":"SUM(Admisiones[[#Totals],[Total real]],AnunciosEnElPrograma[[#Totals],[Total real]],ExpositoresYProveedores[[#Totals],[Total real]],VentaDeElemento[[#Totals],[Total real]])","v":{"v":1831,"d":"$1,831.00"}}]
["La etiqueta Entradas está en la celda de la derecha.","Entradas"]
["Escribe el número de entradas estimado y real con tasas de vales en la tabla que empieza en la celda de la derecha. Los ingresos estimado y real de entradas se calculan automáticamente. La siguiente instrucción se encuentra en la celda A12.","Estimado","Real","Tipo","Precio","Total estimado","Total real"]
[null,300,278,"Adultos a",{"v":5,"d":"$5.00"},{"$f":"B8*E8","v":{"v":1500,"d":"$1,500.00"}},{"$f":"C8*E8","v":{"v":1390,"d":"$1,390.00"}}]
[null,197,195,"Niños a",{"v":2,"d":"$2.00"},{"$f":"B9*E9","v":{"v":394,"d":"$394.00"}},{"$f":"C9*E9","v":{"v":390,"d":"$390.00"}}]
[null,42,51,"Otros a",{"v":1,"d":"$1.00"},{"v":42,"d":"$42.00"},{"v":51,"d":"$51.00"}]
[null," ",{"$nulls":3},{"$f":"SUBTOTAL(109,Admisiones[Total estimado])","v":{"v":1936,"d":"$1,936.00"}},{"$f":"SUBTOTAL(109,Admisiones[Total real])","v":{"v":1831,"d":"$1,831.00"}}]
["La etiqueta Anuncios en el programa se encuentra en la celda de la derecha.","Anuncios del programa"]
["Escribe el número de anuncios en el programa estimado y real en el programa y las tasas de anuncios en la tabla que empieza a partir de la celda de la derecha. Los ingresos de anuncios estimado y real se calculan automáticamente. La siguiente instrucción se encuentra en la celda A18.","Estimado","Real","Tipo","Precio","Total estimado","Total real"]
[{"$nulls":3},"Portadas a",null,{"$f":"B14*E14","v":{"v":0,"d":"$0.00"}},{"$f":"C14*E14","v":{"v":0,"d":"$0.00"}}]
[{"$nulls":3},"Medias páginas a",null,{"$f":"B15*E15","v":{"v":0,"d":"$0.00"}},{"$f":"C15*E15","v":{"v":0,"d":"$0.00"}}]
[{"$nulls":3},"Cuartos de página a",null,{"v":0,"d":"$0.00"},{"v":0,"d":"$0.00"}]
[null," ",{"$nulls":3},{"$f":"SUBTOTAL(109,AnunciosEnElPrograma[Total estimado])","v":{"v":0,"d":"$0.00"}},{"$f":"SUBTOTAL(109,AnunciosEnElPrograma[Total real])","v":{"v":0,"d":"$0.00"}}]
["La etiqueta Expositores o Proveedores se encuentra en la celda de la derecha.","Expositores y proveedores"]
["Escribe el número de expositores estimado y real y las tasas de los puestos en la tabla que empieza en la celda de la derecha. Los ingresos estimado y real se calculan automáticamente. La siguiente instrucción se encuentra en la celda A24.","Estimado","Real","Tipo","Precio","Total estimado","Total real"]
[{"$nulls":3},"Puestos grandes a",null,{"$f":"B20*E20","v":{"v":0,"d":"$0.00"}},{"$f":"C20*E20","v":{"v":0,"d":"$0.00"}}]
[{"$nulls":3},"Puestos medianos a",null,{"$f":"B21*E21","v":{"v":0,"d":"$0.00"}},{"$f":"C21*E21","v":{"v":0,"d":"$0.00"}}]
[{"$nulls":3},"Puestos pequeños a",null,{"v":0,"d":"$0.00"},{"v":0,"d":"$0.00"}]
[null," ",{"$nulls":3},{"$f":"SUBTOTAL(109,ExpositoresYProveedores[Total estimado])","v":{"v":0,"d":"$0.00"}},{"$f":"SUBTOTAL(109,ExpositoresYProveedores[Total real])","v":{"v":0,"d":"$0.00"}}]
["La etiqueta Venta de productos se encuentra en la celda de la derecha.","Venta de productos"]
["Escribe el número de productos vendidos estimado y real en el programa y las Venta De Elemento en la tabla que empieza a partir de la celda de la derecha. Los ingresos estimado y real se calculan automáticamente.","Estimado","Real","Tipo","Precio","Total estimado","Total real"]
[{"$nulls":3},"Productos a",null,{"$f":"B26*E26","v":{"v":0,"d":"$0.00"}},{"$f":"C26*E26","v":{"v":0,"d":"$0.00"}}]
[{"$nulls":3},"Productos a",null,{"$f":"B27*E27","v":{"v":0,"d":"$0.00"}},{"$f":"C27*E27","v":{"v":0,"d":"$0.00"}}]
[{"$nulls":3},"Productos a",null,{"v":0,"d":"$0.00"},{"v":0,"d":"$0.00"}]
[{"$nulls":3},"Productos a",null,{"v":0,"d":"$0.00"},{"v":0,"d":"$0.00"}]
[null," ",{"$nulls":3},{"$f":"SUBTOTAL(109,VentaDeElemento[Total estimado])","v":{"v":0,"d":"$0.00"}},{"$f":"SUBTOTAL(109,VentaDeElemento[Total real])","v":{"v":0,"d":"$0.00"}}]

{"sheet":"Resumen","index":3,"n_rows":9,"n_cols":4,"rows_kept":9,"merged":[[1,1,1,3],[2,2,2,3],[8,1,8,4],[9,1,9,3]]}
["El Resumen de beneficios y pérdidas y el gráfico que muestra el ingresos Totales y gastos se actualizan automáticamente en esta hoja de cálculo. Encontrarás instrucciones útiles sobre cómo usar esta hoja de cálculo en las celdas de esta columna. Presiona la flecha abajo para empezar."]
["El nombre del evento se actualiza automáticamente en celda de la derecha.",{"$f":"Gastos!B2","v":"Presupuesto del evento para \nNombre del evento"}]
["La etiqueta Resumen de beneficios y pérdidas en la celda C3. La siguiente instrucción se encuentra en la celda A5.",null,"Resumen de beneficios y pérdidas"]
[]
["La tabla Total que empieza por la celda de la derecha se actualiza automáticamente. La siguiente instrucción se encuentra en la celda A9.","Total","Estimado","Real"]
[null,"Ingresos totales",{"$f":"Ingresos!F5","v":{"v":1936,"d":"$1,936.00"}},{"$f":"Ingresos!G5","v":{"v":1831,"d":"$1,831.00"}}]
[null,"Gastos totales",{"$f":"Gastos!G5","v":{"v":1145,"d":"$1,145.00"}},{"$f":"Gastos!H5","v":{"v":395,"d":"$395.00"}}]
[null,"Beneficio total (o pérdidas)",{"$f":"C6-C7","v":{"v":791,"d":"$791.00"}},{"$f":"D6-D7","v":{"v":1436,"d":"$1,436.00"}}]
["El gráfico de columnas agrupadas ilustra una comparación de los valores estimado y real de los ingresos totales y los gastos totales está en la celda de la derecha.","El gráfico de columnas agrupadas ilustra una comparación de los valores estimado y real de los ingresos totales y los gastos totales está en esta celda."]